fUSD/lending_fUSD_20240425
["ID","MTS","AMOUNT","RATE_DAILY","PERIOD"]
[323513846,1714061447940,-503.2,0.0001154,2]
[323513847,1714061447949,-831.21,0.0001154,2]
[323513848,1714061447958,-833.43,0.0001154,2]
[323513849,1714061447967,-511.13,0.0001154,2]
[323513850,1714061447976,-1868.82,0.0001154,2]
[323513851,1714061447986,-11091.09,0.0001154,2]
[323513852,1714061447995,-500.0,0.0001154,2]
[323513853,1714061448005,-500.0,0.0001154,2]
[323513854,1714061448014,-17125.5,0.0001154,2]
[323513855,1714061448023,-500.0,0.0001154,2]
[323513856,1714061448033,-888.54,0.0001154,2]
[323513857,1714061448042,-1996.88,0.0001154,2]
[323513858,1714061448051,-500.0,0.0001154,2]
[323513859,1714061448060,-807.23,0.0001154,2]
[323513860,1714061448068,-500.0,0.0001154,2]
[323513861,1714061448078,-1536.64,0.0001154,2]
[323513862,1714061448087,-771.51,0.0001154,2]
[323513863,1714061448096,-500.0,0.0001154,2]
[323513864,1714061448105,-28017.29,0.0001154,2]
[323513865,1714061448114,-562.79,0.0001154,2]
[323513866,1714061448123,-500.0,0.0001154,2]
[323513867,1714061448133,-500.0,0.0001154,2]
[323513868,1714061448141,-500.16,0.0001154,2]
[323513869,1714061448151,-500.0,0.0001154,2]
[323513870,1714061448162,-500.0,0.0001154,2]
[323513871,1714061448171,-886.04,0.0001154,2]
[323513872,1714061448180,-926.79,0.0001154,2]
[323513873,1714061448190,-680.76,0.0001154,2]
[323513874,1714061448199,-866.51,0.0001154,2]
[323513875,1714061448208,-500.0,0.0001154,2]
[323513876,1714061448217,-500.0,0.0001154,2]
[323513877,1714061448226,-615.65,0.0001154,2]
[323513878,1714061448235,-500.0,0.0001154,2]
[323513879,1714061448244,-500.0,0.0001154,2]
[323513880,1714061448253,-516.18,0.0001154,2]
[323513881,1714061448262,-519.47,0.0001154,2]
[323513882,1714061448271,-2481.66,0.0001154,2]
[323513883,1714061448280,-500.0,0.0001154,2]
[323513884,1714061448289,-617.1,0.0001154,2]
[323513885,1714061448298,-500.0,0.0001154,2]
[323513886,1714061448308,-500.0,0.0001154,2]
[323513887,1714061448317,-1195.77,0.0001154,2]
[323513888,1714061448326,-1046.24,0.0001154,2]
[323513889,1714061448335,-500.0,0.0001154,2]
[323513890,1714061448344,-1609.35,0.0001154,2]
[323513891,1714061448354,-3516.17,0.0001154,2]
[323513892,1714061448363,-500.0,0.0001154,2]
[323513893,1714061448372,-500.0,0.0001154,2]
[323513894,1714061448381,-500.0,0.0001154,2]
[323513895,1714061448390,-3437.6,0.0001154,2]
[323513896,1714061448402,-1060.13,0.0001154,2]
[323513897,1714061448413,-500.0,0.0001154,2]
[323513898,1714061448424,-500.0,0.0001154,2]
[323513899,1714061448433,-500.0,0.0001154,2]
[323513900,1714061448442,-500.0,0.0001154,2]
[323513901,1714061448451,-500.0,0.0001154,2]
[323513902,1714061448461,-516.37,0.0001154,2]
[323513903,1714061448470,-500.0,0.0001154,2]
[323513904,1714061448479,-500.0,0.0001154,2]
[323513905,1714061448492,-675.46,0.0001154,2]
[323513906,1714061448502,-500.0,0.0001154,2]
[323513907,1714061448512,-500.0,0.0001154,2]
[323513908,1714061448522,-500.0,0.0001154,2]
[323513909,1714061448533,-870.07,0.0001154,2]
[323513910,1714061448543,-788.19,0.0001154,2]
[323513911,1714061448552,-540.87,0.0001154,2]
[323513912,1714061448562,-1998.38,0.0001154,2]
[323513913,1714061448572,-500.0,0.0001154,2]
[323513914,1714061448581,-500.0,0.0001154,2]
[323513915,1714061448590,-500.0,0.0001154,2]
[323513916,1714061448600,-2359.88,0.0001154,2]
[323513917,1714061448610,-500.0,0.0001154,2]
[323513918,1714061448619,-500.0,0.0001154,2]
[323513919,1714061448628,-506.0,0.0001154,2]
[323513920,1714061448637,-582.42,0.0001154,2]
[323513921,1714061448647,-500.0,0.0001154,2]
[323513922,1714061448656,-2087.94,0.0001154,2]
[323513923,1714061448670,-2158.63,0.0001154,2]
[323513924,1714061448679,-500.0,0.0001154,2]
[323513925,1714061448688,-1590.4,0.0001154,2]
[323513926,1714061448697,-500.0,0.0001154,2]
[323513927,1714061448706,-2906.78,0.0001154,2]
[323513928,1714061448716,-500.0,0.0001154,2]
[323513929,1714061448725,-500.0,0.0001154,2]
[323513930,1714061448734,-500.0,0.0001154,2]
[323513931,1714061448743,-611.92,0.0001154,2]
[323513932,1714061448753,-500.0,0.0001154,2]
[323513933,1714061448762,-500.0,0.0001154,2]
[323513934,1714061448771,-565.89,0.0001154,2]
[323513935,1714061448780,-500.0,0.0001154,2]
[323513936,1714061448789,-500.0,0.0001154,2]
[323513937,1714061448798,-616.23,0.0001154,2]
[323513938,1714061448808,-525.76,0.0001154,2]
[323513939,1714061448817,-925.98,0.0001154,2]
[323513940,1714061448826,-567.55,0.0001154,2]
[323513941,1714061448835,-500.0,0.0001154,2]
[323513942,1714061448844,-500.0,0.0001154,2]
[323513943,1714061448854,-500.0,0.0001154,2]
[323513944,1714061448863,-500.0,0.0001154,2]
[323513945,1714061448872,-1361.58,0.0001154,2]
[323513946,1714061448882,-554.87,0.0001154,2]
[323513947,1714061448891,-500.0,0.0001154,2]
[323513948,1714061448900,-500.0,0.0001154,2]
[323513949,1714061448913,-5055.28,0.0001154,2]
[323513950,1714061448922,-656.47,0.0001154,2]
[323513951,1714061448932,-632.07,0.0001154,2]
[323513952,1714061448941,-500.0,0.0001154,2]
[323513953,1714061448952,-500.0,0.0001154,2]
[323513954,1714061448961,-1723.0,0.0001154,2]
[323513955,1714061448971,-500.0,0.00011541,2]
[323513956,1714061448980,-500.0,0.00011541,2]
[323513957,1714061448989,-604.89,0.00011541,2]
[323513958,1714061448998,-964.42,0.00011541,2]
[323513959,1714061449008,-500.0,0.00011541,2]
[323513960,1714061449017,-819.76,0.00011541,2]
[323513961,1714061449026,-500.0,0.00011541,2]
[323513962,1714061449036,-500.0,0.00011541,2]
[323513963,1714061449046,-500.0,0.00011541,2]
[323513964,1714061449056,-1072.85,0.00011541,2]
[323513965,1714061449066,-500.0,0.00011541,2]
[323513966,1714061449075,-642.41,0.00011541,2]
[323513967,1714061449084,-500.0,0.00011541,2]
[323513968,1714061449094,-697.84,0.00011541,2]
[323513969,1714061449103,-500.0,0.00011541,2]
[323513970,1714061449111,-500.0,0.00011541,2]
[323513971,1714061449120,-1042.5,0.00011541,2]
[323513972,1714061449130,-500.0,0.00011541,2]
[323513973,1714061449139,-500.0,0.00011541,2]
[323513974,1714061449149,-500.0,0.00011541,2]
[323513975,1714061449158,-1110.4,0.00011541,2]
[323513976,1714061449169,-500.0,0.00011541,2]
[323513977,1714061449179,-500.0,0.00011541,2]
[323513978,1714061449188,-500.0,0.00011541,2]
[323513979,1714061449198,-500.0,0.00011541,2]
[323513980,1714061449207,-500.0,0.00011541,2]
[323513981,1714061449217,-738.35,0.00011541,2]
[323513982,1714061449226,-796.57,0.00011541,2]
[323513983,1714061449235,-500.0,0.00011541,2]
[323513984,1714061449245,-500.0,0.00011541,2]
[323513985,1714061449254,-1013.09,0.00011541,2]
[323513986,1714061449264,-730.43,0.00011541,2]
[323513987,1714061449273,-500.0,0.00011541,2]
[323513988,1714061449282,-500.0,0.00011541,2]
[323513989,1714061449291,-500.0,0.00011541,2]
[323513990,1714061449301,-547.81,0.00011541,2]
[323513991,1714061449310,-500.0,0.00011541,2]
[323513992,1714061449319,-500.0,0.00011541,2]
[323513993,1714061449328,-500.0,0.00011541,2]
[323513994,1714061449338,-500.0,0.00011541,2]
[323513995,1714061449346,-368.57,0.00011541,2]
[323513996,1714061449355,-500.0,0.00011541,2]
[323513997,1714061449365,-500.0,0.00011541,2]
[323513998,1714061449374,-500.0,0.00011541,2]
[323513999,1714061449383,-500.0,0.00011541,2]
[323514000,1714061449392,-500.0,0.00011541,2]
[323514001,1714061449402,-500.0,0.00011541,2]
[323514002,1714061449414,-500.0,0.00011541,2]
[323514003,1714061449423,-191.72315702,0.00011541,2]
[323514004,1714061449432,-564.02,0.00011541,2]
[323514005,1714061449442,-500.0,0.00011541,2]
[323514006,1714061449451,-500.0,0.00011541,2]
[323514007,1714061449459,-3442.74,0.00011541,2]
[323514008,1714061449627,-798.58,0.00011541,2]
[323514009,1714061449638,-500.0,0.00011541,2]
[323514010,1714061449647,-500.0,0.00011541,2]
[323514011,1714061449657,-2094.01,0.00011541,2]
[323514012,1714061449669,-500.0,0.00011541,2]
[323514013,1714061449678,-500.0,0.00011541,2]
[323514014,1714061449687,-500.0,0.00011541,2]
[323514015,1714061449696,-1095.89,0.00011541,2]
[323514016,1714061449706,-902.96,0.00011541,2]
[323514017,1714061449715,-500.0,0.00011541,2]
[323514018,1714061449724,-500.0,0.00011541,2]
[323514019,1714061449733,-4543.94,0.00011541,2]
[323514020,1714061449742,-500.0,0.00011541,2]
[323514021,1714061449752,-500.0,0.00011541,2]
[323514022,1714061449761,-1573.96,0.00011541,2]
[323514023,1714061449770,-500.0,0.00011541,2]
[323514024,1714061449780,-500.0,0.00011541,2]
[323514025,1714061449790,-510.11,0.00011541,2]
[323514026,1714061449799,-500.0,0.00011541,2]
[323514027,1714061449808,-500.0,0.00011541,2]
[323514028,1714061449818,-500.0,0.00011541,2]
[323514029,1714061449827,-600.38,0.00011541,2]
[323514030,1714061449836,-634.48,0.00011541,2]
[323514031,1714061449846,-824.45,0.00011541,2]
[323514032,1714061449855,-500.0,0.00011541,2]
[323514033,1714061449864,-667.71,0.00011541,2]
[323514034,1714061449873,-500.0,0.00011541,2]
[323514035,1714061449883,-500.0,0.00011541,2]
[323514036,1714061449892,-502.4,0.00011541,2]
[323514037,1714061449902,-1683.97,0.00011541,2]
[323514038,1714061449912,-500.0,0.00011541,2]
[323514039,1714061449921,-500.0,0.00011541,2]
[323514040,1714061449931,-4959.58,0.00011541,2]
[323514041,1714061449940,-1609.53,0.00011541,2]
[323514042,1714061449949,-6531.48,0.00011541,2]
[323514043,1714061449959,-500.0,0.00011542,2]
[323514044,1714061449968,-500.0,0.00011542,2]
[323514045,1714061449978,-500.0,0.00011542,2]
[323514046,1714061449986,-500.0,0.00011542,2]
[323514047,1714061449996,-500.0,0.00011542,2]
[323514048,1714061450005,-500.0,0.00011542,2]
[323514049,1714061450014,-500.0,0.00011542,2]
[323514050,1714061450023,-500.0,0.00011542,2]
[323514051,1714061450032,-500.0,0.00011542,2]
[323514052,1714061450042,-500.0,0.00011542,2]
[323514053,1714061450051,-500.0,0.00011542,2]
[323514054,1714061450060,-610.59688917,0.00011542,2]
[323514055,1714061450070,-512.87,0.00011542,2]
[323514056,1714061450079,-500.0,0.00011542,2]
[323514057,1714061450089,-716.28,0.00011542,2]
[323514058,1714061450098,-500.0,0.00011542,2]
[323514059,1714061450107,-500.0,0.00011542,2]
[323514060,1714061450117,-500.0,0.00011542,2]
[323514061,1714061450126,-500.0,0.00011542,2]
[323514062,1714061450136,-500.0,0.00011542,2]
[323514063,1714061450145,-500.0,0.00011542,2]
[323514064,1714061450155,-500.0,0.00011542,2]
[323514065,1714061450167,-500.0,0.00011542,2]
[323514066,1714061450176,-500.0,0.00011542,2]
[323514067,1714061450185,-500.0,0.00011542,2]
[323514068,1714061450195,-500.0,0.00011542,2]
[323514069,1714061450204,-500.0,0.00011542,2]
[323514070,1714061450213,-500.0,0.00011542,2]
[323514071,1714061450222,-500.0,0.00011542,2]
[323514072,1714061450232,-500.0,0.00011542,2]
[323514073,1714061450241,-500.0,0.00011542,2]
[323514074,1714061450250,-500.0,0.00011542,2]
[323514075,1714061450260,-500.0,0.00011542,2]
[323514076,1714061450269,-500.0,0.00011542,2]
[323514077,1714061450278,-500.0,0.00011542,2]
[323514078,1714061450287,-500.0,0.00011542,2]
[323514079,1714061450297,-500.0,0.00011542,2]
[323514080,1714061450306,-288.35066698,0.00011542,2]
[323514081,1714061450315,-455.15339235,0.00011542,2]
[323514082,1714061450324,-500.0,0.00011542,2]
[323514083,1714061450333,-500.0,0.00011542,2]
[323514084,1714061450343,-500.0,0.00011542,2]
[323514085,1714061450353,-531.28,0.00011542,2]
[323514086,1714061450362,-500.0,0.00011542,2]
[323514087,1714061450371,-7191.2548939,0.00011565,2]
[323514088,1714061450381,-593.17732606,0.00011567,2]
[323514089,1714061450390,-150.0,0.00011581,2]
[323514090,1714061450399,-150.0,0.00011585,2]
[323514091,1714061450412,-150.0,0.000116,2]
[323514092,1714061450421,-7191.2548939,0.00011607,2]
[323514093,1714061450430,-150.0,0.00011608,2]
[323514094,1714061450439,-150.0,0.00011615,2]
[323514095,1714061450448,-150.0,0.0001162,2]
[323514096,1714061450458,-150.0,0.00011622,2]
[323514097,1714061450467,-150.0,0.00011623,2]
[323514098,1714061450476,-150.0,0.00011628,2]
[323514099,1714061450486,-296.23440643,0.00011633,2]
[323514100,1714061450496,-150.0,0.00011634,2]
[323514101,1714061450507,-150.0,0.00011635,2]
[323514102,1714061450516,-7191.2548939,0.00011649,2]
[323514103,1714061450525,-150.0,0.00011649,2]
[323514104,1714061450534,-150.0,0.00011653,2]
[323514105,1714061450543,-150.0,0.00011655,2]
[323514106,1714061450553,-150.0,0.00011656,2]
[323514107,1714061450562,-150.0,0.00011657,2]
[323514108,1714061450571,-150.0,0.00011657,2]
[323514109,1714061450581,-150.0,0.00011657,2]
[323514110,1714061450591,-150.0,0.00011661,2]
[323514111,1714061450601,-150.0,0.00011662,2]
[323514112,1714061450610,-150.0,0.00011663,2]
[323514113,1714061450619,-150.0,0.00011664,2]
[323514114,1714061450629,-150.0,0.00011665,2]
[323514115,1714061450638,-150.0,0.00011665,2]
[323514116,1714061450648,-150.0,0.00011665,2]
[323514117,1714061450657,-150.0,0.00011667,2]
[323514118,1714061450668,-150.0,0.00011671,2]
[323514119,1714061450678,-300.0,0.00011674,2]
[323514120,1714061450688,-150.0,0.00011674,2]
[323514121,1714061450698,-150.0,0.00011678,2]
[323514122,1714061450707,-150.0,0.00011681,2]
[323514123,1714061450716,-150.0,0.00011684,2]
[323514124,1714061450725,-199.24087466,0.00011687,2]
[323514125,1714061450735,-150.0,0.00011688,2]
[323514126,1714061450744,-150.0,0.00011688,2]
[323514127,1714061450753,-150.0,0.00011689,2]
[323514128,1714061450762,-293.0,0.0001169,2]
[323514129,1714061450771,-7191.2548939,0.0001169,2]
[323514130,1714061450781,-1000.0,0.000117,2]
[323514131,1714061450791,-264.53098163,0.000117,2]
[323514132,1714061450800,-150.0,0.000117,2]
[323514133,1714061450809,-171.25463459,0.00011701,2]
[323514134,1714061450818,-150.0,0.00011701,2]
[323514135,1714061450827,-593.17732606,0.00011701,2]
[323514136,1714061450837,-150.0,0.00011702,2]
[323514137,1714061450846,-5013.57370066,0.00011703,2]
[323514138,1714061450856,-150.0,0.00011721,2]
[323514139,1714061450865,-150.0,0.00011721,2]
[323514140,1714061450874,-150.0,0.00011721,2]
[323514141,1714061450883,-150.0,0.00011724,2]
[323514142,1714061450893,-150.0,0.0001173,2]
[323514143,1714061450902,-7191.2548939,0.00011732,2]
[323514144,1714061450912,-150.0,0.00011738,2]
[323514145,1714061450921,-300.0,0.00011738,2]
[323514146,1714061450931,-150.0,0.00011739,2]
[323514147,1714061450940,-150.0,0.0001174,2]
[323514148,1714061450949,-150.0,0.00011743,2]
[323514149,1714061450958,-150.0,0.00011743,2]
[323514150,1714061450968,-150.0,0.00011745,2]
[323514151,1714061450977,-231.52753166,0.00011749,2]
[323514152,1714061450986,-150.0,0.00011754,2]
[323514153,1714061450995,-150.0,0.00011757,2]
[323514154,1714061451004,-150.0,0.00011758,2]
[323514155,1714061451014,-150.0,0.00011765,2]
[323514156,1714061451024,-150.0,0.00011769,2]
[323514157,1714061451033,-150.0,0.0001177,2]
[323514158,1714061451042,-150.0,0.00011773,2]
[323514159,1714061451052,-7191.2548939,0.00011774,2]
[323514160,1714061451062,-150.0,0.00011779,2]
[323514161,1714061451073,-500.0,0.0001178,2]
[323514162,1714061451082,-2100.0,0.0001178,2]
[323514163,1714061451091,-600.0,0.0001178,2]
[323514164,1714061451100,-500.0,0.0001178,2]
[323514165,1714061451110,-150.0,0.00011781,2]
[323514166,1714061451119,-150.0,0.00011782,2]
[323514167,1714061451128,-150.0,0.00011784,2]
[323514168,1714061451138,-687.13467086,0.00011784,2]
[323514169,1714061451147,-323.93578704,0.00011784,2]
[323514170,1714061451157,-209.90057592,0.00011784,2]
[323514171,1714061451168,-251.14525574,0.00011785,2]
[323514172,1714061451178,-620.0,0.00011786,2]
[323514173,1714061451187,-59077.62625917,0.00011786,2]
[323514174,1714061451197,-150.0,0.00011787,2]
[323514175,1714061451206,-150.0,0.00011787,2]
[323514176,1714061451215,-150.0,0.0001179,2]
[323514177,1714061451225,-254.91292133,0.0001179,2]
[323514178,1714061451234,-254.91292133,0.0001179,2]
[323514179,1714061451243,-150.0,0.00011792,2]
[323514180,1714061451252,-150.0,0.00011794,2]
[323514181,1714061451262,-150.0,0.00011794,2]
[323514182,1714061451271,-150.0,0.00011797,2]
[323514183,1714061451280,-150.0,0.00011797,2]
[323514184,1714061451290,-313.70598498,0.00011798,2]
[323514185,1714061451299,-360.52951426,0.00011798,2]
[323514186,1714061451308,-238.25600323,0.00011798,2]
[323514187,1714061451317,-221.05039064,0.00011798,2]
[323514188,1714061451327,-156.12654115,0.00011798,2]
[323514189,1714061451336,-325.37506637,0.00011798,2]
[323514190,1714061451345,-166.3767378,0.00011798,2]
[323514191,1714061451354,-195.97917074,0.00011798,2]
[323514192,1714061451364,-224.89471763,0.00011798,2]
[323514193,1714061451373,-155.59422064,0.00011798,2]
[323514194,1714061451383,-1811.71429741,0.00011798,2]
[323514195,1714061451394,-245.56779934,0.00011798,2]
[323514196,1714061451404,-155.1119593,0.00011798,2]
[323514197,1714061451415,-156.60467947,0.00011798,2]
[323514198,1714061451426,-303.53418169,0.00011798,2]
[323514199,1714061451435,-155.42199688,0.00011798,2]
[323514200,1714061451445,-423.8176794,0.00011798,2]
[323514201,1714061451455,-406.05313333,0.00011798,2]
[323514202,1714061451465,-246.50538896,0.00011798,2]
[323514203,1714061451475,-162.68520801,0.00011798,2]
[323514204,1714061451486,-212.27868082,0.00011798,2]
[323514205,1714061451497,-166.27150602,0.00011798,2]
[323514206,1714061451506,-155.0,0.00011798,2]
[323514207,1714061451516,-207.88378701,0.00011798,2]
[323514208,1714061451526,-309.59058991,0.00011798,2]
[323514209,1714061451535,-288.25774565,0.00011798,2]
[323514210,1714061451544,-157.92129474,0.00011798,2]
[323514211,1714061451554,-1351.89634566,0.00011798,2]
[323514212,1714061451564,-1070.50799097,0.00011798,3]
[323514213,1714061451574,-455814.33518158,0.000118,5]
[323514214,1714061452147,18868.68438075,8.219e-05,2]
[323514215,1714061452215,180.02697293,8.219e-05,2]
[323514216,1714061452552,559.66150284,8.219e-05,2]
[323514217,1714061452607,-919.65044612,0.00010991,2]
[323514218,1714061452619,-149.34955388,0.00010991,2]
[323514219,1714061452629,-34813.5117535,0.000118,5]
[323514220,1714061452661,-3268.0669238,0.000118,5]
[323514221,1714061452675,-3220.47496843,0.000118,5]
[323514222,1714061452687,-9707.62383716,0.000118,5]
[323514223,1714061452699,-1816.69900441,0.000118,5]
[323514224,1714061452711,-2139.46397128,0.000118,5]
[323514225,1714061452755,-500.0,0.00010991,2]
[323514226,1714061452764,-1095.05453861,0.000118,5]
[323514227,1714061452776,-1098.90001,0.000118,5]
[323514228,1714061452787,-342.0423,0.000118,5]
[323514229,1714061452798,-329.56376627,0.000118,5]
[323514230,1714061452828,-1893195.808172,0.000118,5]
[323514231,1714061452838,-5013.57370066,0.00011802,2]
[323514232,1714061452847,-4583.44785109,0.00011803,2]
[323514233,1714061452856,-150.0,0.00011805,2]
[323514234,1714061452865,-150.0,0.00011808,2]
[323514235,1714061452875,-150.0,0.00011811,2]
[323514236,1714061452884,-1188.36,0.00011813,2]
[323514237,1714061452894,-500.0,0.00011813,2]
[323514238,1714061452903,-1225.75,0.00011813,2]
[323514239,1714061452912,-638.32,0.00011813,2]
[323514240,1714061452923,-500.0,0.00011813,2]
[323514241,1714061452932,-500.0,0.00011813,2]
[323514242,1714061452941,-762.39,0.00011813,2]
[323514243,1714061452950,-594.15,0.00011813,2]
[323514244,1714061452959,-3407.11,0.00011813,2]
[323514245,1714061452968,-6590.6,0.00011813,2]
[323514246,1714061452978,-500.0,0.00011813,2]
[323514247,1714061452990,-500.0,0.00011813,2]
[323514248,1714061452999,-500.0,0.00011813,2]
[323514249,1714061453009,-500.0,0.00011813,2]
[323514250,1714061453018,-3622.56,0.00011813,2]
[323514251,1714061453028,-656.48,0.00011813,2]
[323514252,1714061453037,-1115.81,0.00011813,2]
[323514253,1714061453046,-723.67,0.00011813,2]
[323514254,1714061453055,-1950.05,0.00011813,2]
[323514255,1714061453064,-500.0,0.00011813,2]
[323514256,1714061453074,-5156.95,0.00011813,2]
[323514257,1714061453083,-500.0,0.00011813,2]
[323514258,1714061453093,-779.73,0.00011813,2]
[323514259,1714061453102,-2407.71,0.00011813,2]
[323514260,1714061453111,-500.0,0.00011813,2]
[323514261,1714061453121,-500.0,0.00011813,2]
[323514262,1714061453130,-500.0,0.00011813,2]
[323514263,1714061453139,-929.17,0.00011813,2]
[323514264,1714061453149,-819.75,0.00011813,2]
[323514265,1714061453158,-563.23,0.00011813,2]
[323514266,1714061453169,-500.0,0.00011813,2]
[323514267,1714061453179,-500.0,0.00011813,2]
[323514268,1714061453188,-500.0,0.00011813,2]
[323514269,1714061453197,-500.0,0.00011813,2]
[323514270,1714061453207,-1601.68887736,0.00011814,2]
[323514271,1714061453217,-3758.67774221,0.00011814,2]
[323514272,1714061453226,-161.51762488,0.00011814,2]
[323514273,1714061453235,-1376.06970911,0.00011814,2]
[323514274,1714061453245,-500.0,0.00011814,2]
[323514275,1714061453256,-500.0,0.00011814,2]
[323514276,1714061453274,-867.25,0.00011814,2]
[323514277,1714061453289,-500.0,0.00011814,2]
[323514278,1714061453302,-500.0,0.00011814,2]
[323514279,1714061453316,-517.07,0.00011814,2]
[323514280,1714061453331,-500.0,0.00011814,2]
[323514281,1714061453346,-500.0,0.00011814,2]
[323514282,1714061453360,-582.63,0.00011814,2]
[323514283,1714061453372,-500.0,0.00011814,2]
[323514284,1714061453386,-607.42,0.00011814,2]
[323514285,1714061453400,-500.0,0.00011814,2]
[323514286,1714061453416,-594.96,0.00011814,2]
[323514287,1714061453428,-575.49,0.00011814,2]
[323514288,1714061453443,-500.0,0.00011814,2]
[323514289,1714061453457,-500.34732397,0.00011814,2]
[323514290,1714061453471,-500.0,0.00011814,2]
[323514291,1714061453485,-599.61,0.00011814,2]
[323514292,1714061453503,-652.22,0.00011814,2]
[323514293,1714061453516,-500.0,0.00011814,2]
[323514294,1714061453531,-500.0,0.00011814,2]
[323514295,1714061453547,-500.0,0.00011814,2]
[323514296,1714061453560,-610.37,0.00011814,2]
[323514297,1714061453574,-500.0,0.00011814,2]
[323514298,1714061453587,-500.0,0.00011814,2]
[323514299,1714061453601,-500.0,0.00011814,2]
[323514300,1714061453616,-691.31,0.00011814,2]
[323514301,1714061453627,-500.0,0.00011814,2]
[323514302,1714061453638,-630.25,0.00011814,2]
[323514303,1714061453650,-552.16,0.00011814,2]
[323514304,1714061453667,-506.41,0.00011814,2]
[323514305,1714061453679,-500.0,0.00011814,2]
[323514306,1714061453692,-500.0,0.00011814,2]
[323514307,1714061453705,-579.75,0.00011814,2]
[323514308,1714061453717,-500.0,0.00011814,2]
[323514309,1714061453730,-242.56,0.00011814,2]
[323514310,1714061453744,-500.0,0.00011814,2]
[323514311,1714061453757,-500.0,0.00011814,2]
[323514312,1714061453770,-500.0,0.00011814,2]
[323514313,1714061453783,-500.0,0.00011814,2]
[323514314,1714061453796,-508.93041194,0.00011814,2]
[323514315,1714061453809,-527.71,0.00011814,2]
[323514316,1714061453821,-500.0,0.00011814,2]
[323514317,1714061453834,-500.0,0.00011814,2]
[323514318,1714061453847,-665.86,0.00011814,2]
[323514319,1714061453859,-596.09,0.00011814,2]
[323514320,1714061453871,-500.0,0.00011814,2]
[323514321,1714061453885,-500.0,0.00011814,2]
[323514322,1714061453898,-500.0,0.00011814,2]
[323514323,1714061453910,-500.0,0.00011814,2]
[323514324,1714061453923,-500.0,0.00011814,2]
[323514325,1714061453936,-500.0,0.00011814,2]
[323514326,1714061453948,-877.0,0.00011814,2]
[323514327,1714061453960,-529.08,0.00011814,2]
[323514328,1714061453973,-522.83,0.00011814,2]
[323514329,1714061453986,-500.0,0.00011814,2]
[323514330,1714061453998,-500.0,0.00011814,2]
[323514331,1714061454010,-500.0,0.00011814,2]
[323514332,1714061454023,-500.0,0.00011814,2]
[323514333,1714061454036,-500.0,0.00011814,2]
[323514334,1714061454049,-150.0,0.00011814,2]
[323514335,1714061454061,-500.0,0.00011814,2]
[323514336,1714061454073,-500.0,0.00011814,2]
[323514337,1714061454085,-500.0,0.00011814,2]
[323514338,1714061454098,-500.0,0.00011814,2]
[323514339,1714061454110,-500.0,0.00011814,2]
[323514340,1714061454123,-500.0,0.00011814,2]
[323514341,1714061454135,-500.0,0.00011814,2]
[323514342,1714061454148,-500.0,0.00011814,2]
[323514343,1714061454160,-811.11,0.00011814,2]
[323514344,1714061454174,-500.0,0.00011814,2]
[323514345,1714061454186,-500.0,0.00011814,2]